[Event "Ceske Budejovice Open-A 2019"]
[Site "Ceske Budejovice"]
[Date "2019.07.06"]
[Round "8.14"]
[White "Steiner, Juraj"]
[Black "Stehlik, Jiri"]
[Result "1-0"]
[ECO "A11"]
[WhiteElo "1896"]
[BlackElo "1930"]
[Annotator "NA RC"]
[PlyCount "131"]
[EventDate "2019.07.02"]
[EventCountry "CZE"]
[SourceTitle "playchess.com"]
[Source "ChessBase"]
[SourceQuality "1"]
[TimeControl "5400+30"]

1. c4 c6 2. Nf3 Nf6 3. b3 g6 4. Bb2 Bg7 5. d3 d5 6. Nbd2 O-O 7. e3 Nbd7 8. Be2 Qc7 9. Rc1 Qd8 10. O-O Re8 11. Ne5 Nxe5 12. Bxe5 Be6 13. Qc2 Nd7 14. Bxg7 Kxg7 15. cxd5 Bxd5 16. f4 Qb6 17. d4 f5 18. Nc4 Qc7 19. Bf3 Bxf3 20. Rxf3 Nf6 21. b4 Rac8 22. Qf2 e6 23. Qh4 Qe7 24. Rh3 Nh5 25. Qe1 Nf6 26. Ne5 Nd5 27. Rb1 Rc7 28. Rg3 Nf6 29. Rb2 Rg8 30. Rc2 Nd7 31. Nd3 Nf6 32. Qc1 Rgc8 33. Rf3 Nd5 34. Qd2 Nf6 35. Rf1 Ne4 36. Qe2 Nf6 37. Rfc1 Kg8 38. Nc5 Nd5 39. a3 Nf6 40. Qc4 Kf7 41. Qb3 Nd7 42. Nxd7 Qxd7 43. Rc5 a6 44. a4 Ke7 45. Qc2 b6 46. Rc3 b5 47. axb5 axb5 48. Qf2 Kf7 49. Rc5 Qe7 50. Qf3 Qd6 51. h3 Kg7 52. g4 Kf7 53. Kh2 Kf8 54. Kg3 Kg8 55. g5 Kg7 56. h4 Kg8 57. R1c2 Kg7 58. Qh1 Kg8 59. h5 Qd7 60. hxg6 hxg6 61. Rh2 Qg7 62. Rh6 Ra7 63. Rxc6 Re8 64. Qc1 Rd7 65. Qc5 Rb7 66. Rc8 1-0

[Event "Ceske Budejovice Open-A 2019"]
[Site "Ceske Budejovice"]
[Date "2019.07.06"]
[Round "8.15"]
[White "Glimbrant, Torbjorn"]
[Black "Asatryan, Manvel"]
[Result "1-0"]
[ECO "A15"]
[WhiteElo "2195"]
[BlackElo "1799"]
[Annotator "NA"]
[PlyCount "65"]
[EventDate "2019.07.02"]
[EventCountry "CZE"]
[SourceTitle "playchess.com"]
[Source "ChessBase"]
[SourceQuality "1"]
[TimeControl "5400+30"]

1. c4 {[%emt 0:00:00]} Nf6 {[%emt 0:00:01]} 2. Nf3 {[%emt 0:00:11]} g6 {[%emt 0:00:12]} 3. b3 {[%emt 0:00:13]} c5 {[%emt 0:05:55]} 4. Bb2 {[%emt 0:00:26]} Bg7 {[%emt 0:00:54]} 5. g3 {[%emt 0:00:12]} O-O {[%emt 0:00:51]} 6. Bg2 {[%emt 0:00:11]} Nc6 {[%emt 0:02:10]} 7. O-O {[%emt 0:00:19]} e6 {[%emt 0:04:10]} 8. d4 {[%emt 0:01:56]} cxd4 {[%emt 0:03:12]} 9. Nxd4 {[%emt 0:00:19]} d5 {[%emt 0:05:04]} 10. Nxc6 {[%emt 0:07:20]} bxc6 {[%emt 0:00:11]} 11. Nd2 {[%emt 0:00:19]} Bb7 {[%emt 0:04:32]} 12. Qc2 {[%emt 0:02:34]} Rc8 {[%emt 0:02:42]} 13. e4 {[%emt 0:00:44]} Qb6 {[%emt 0:07:06]} 14. Rac1 {[%emt 0:05:39]} Rfd8 {[%emt 0:05:19]} 15. Qb1 {[%emt 0:01:18]} c5 {[%emt 0:08:46]} 16. cxd5 {[%emt 0:03:23]} exd5 {[%emt 0:00:31]} 17. exd5 {[%emt 0:00:11]} Bxd5 {[%emt 0:05:05]} 18. Nc4 {[%emt 0:01:57]} Qb7 {[%emt 0:08:27]} 19. Bxd5 {[%emt 0:00:47]} Rxd5 {[%emt 0:04:48]} 20. Qa1 {[%emt 0:04:05]} Ne8 {[%emt 0:02:51]} 21. Rfe1 {[%emt 0:05:06]} Bd4 {[%emt 0:03:11]} 22. Re2 {[%emt 0:11:35]} Qd7 {[%emt 0:03:53]} 23. Rce1 {[%emt 0:07:19]} Nf6 {[%emt 0:02:44]} 24. Ne3 {[%emt 0:12:04]} Rh5 {[%emt 0:06:28]} 25. Nf1 {[%emt 0:00:24]} Ng4 {[%emt 0:03:22]} 26. Bxd4 {[%emt 0:04:10]} cxd4 {[%emt 0:00:19]} 27. Re4 {[%emt 0:00:23]} d3 {[%emt 0:08:20]} 28. Re7 {[%emt 0:05:53]} Qc6 {[%emt 0:01:23]} 29. Qd4 {[%emt 0:01:01]} d2 {[%emt 0:01:04]} 30. Qxd2 {[%emt 0:01:10]} Qf3 {[%emt 0:00:58]} 31. Qd4 {[%emt 0:04:28]} Rf8 {[%emt 0:00:24]} 32. Re8 {[%emt 0:05:38]} Qf5 {[%emt 0:00:33]} 33. Rxf8+ {[%emt 0:00:25]} 1-0

[Event "Ceske Budejovice Open-A 2019"]
[Site "Ceske Budejovice"]
[Date "2019.07.06"]
[Round "8.16"]
[White "Malinovsky, Petr"]
[Black "Pavlicek, Adam"]
[Result "1-0"]
[ECO "D35"]
[WhiteElo "2058"]
[BlackElo "1651"]
[Annotator "NA"]
[PlyCount "49"]
[EventDate "2019.07.02"]
[EventCountry "CZE"]
[SourceTitle "playchess.com"]
[Source "ChessBase"]
[SourceQuality "1"]
[TimeControl "5400+30"]

1. d4 {[%emt 0:00:00]} d5 {[%emt 0:00:00]} 2. c4 {[%emt 0:00:00]} e6 {[%emt 0:00:13]} 3. Nc3 {[%emt 0:00:00]} Nf6 {[%emt 0:00:23]} 4. cxd5 {[%emt 0:00:03]} exd5 {[%emt 0:00:23]} 5. Bg5 {[%emt 0:00:17]} Be7 {[%emt 0:00:30]} 6. e3 {[%emt 0:00:08]} Bf5 {[%emt 0:04:55]} 7. Bxf6 {[%emt 0:01:07]} Bxf6 {[%emt 0:01:09]} 8. Qb3 {[%emt 0:00:10]} Bc8 {[%emt 0:12:18]} 9. Qxd5 {[%emt 0:08:49]} Qxd5 {[%emt 0:00:49]} 10. Nxd5 {[%emt 0:00:02]} Bd8 {[%emt 0:00:16]} 11. Nf3 {[%emt 0:01:35]} O-O {[%emt 0:01:43]} 12. Bd3 {[%emt 0:00:51]} c6 {[%emt 0:01:39]} 13. Nc3 {[%emt 0:00:13]} Nd7 {[%emt 0:10:16]} 14. O-O {[%emt 0:01:47]} Nb6 {[%emt 0:00:57]} 15. a3 {[%emt 0:04:28]} Be7 {[%emt 0:02:10]} 16. b4 {[%emt 0:02:45]} Rd8 {[%emt 0:00:22]} 17. Rfc1 {[%emt 0:02:38]} Be6 {[%emt 0:05:56]} 18. b5 {[%emt 0:05:27]} c5 {[%emt 0:04:29]} 19. Be4 {[%emt 0:05:42]} Rab8 {[%emt 0:13:08]} 20. a4 {[%emt 0:04:07]} f5 {[%emt 0:03:26]} 21. Bb1 {[%emt 0:04:36]} cxd4 {[%emt 0:11:37]} 22. Nxd4 {[%emt 0:01:59]} Bf6 {[%emt 0:10:00]} 23. Nxe6 {[%emt 0:05:35]} Bxc3 {[%emt 0:01:12]} 24. Nxd8 {[%emt 0:01:21]} Bxa1 {[%emt 0:07:35]} 25. Ba2+ {[%emt 0:00:24]} 1-0

[Event "Ceske Budejovice Open-A 2019"]
[Site "Ceske Budejovice"]
[Date "2019.07.06"]
[Round "8.17"]
[White "Nezval, Filip"]
[Black "Kaspar, Jonas"]
[Result "1/2-1/2"]
[ECO "E98"]
[WhiteElo "1860"]
[BlackElo "1890"]
[Annotator "NA"]
[PlyCount "81"]
[EventDate "2019.07.02"]
[EventCountry "CZE"]
[SourceTitle "playchess.com"]
[Source "ChessBase"]
[SourceQuality "1"]
[TimeControl "5400+30"]

1. d4 {[%emt 0:00:00]} Nf6 {[%emt 0:00:00]} 2. c4 {[%emt 0:00:00]} g6 {[%emt 0:00:00]} 3. Nc3 {[%emt 0:00:00]} Bg7 {[%emt 0:00:00]} 4. e4 {[%emt 0:00:00]} d6 {[%emt 0:00:00]} 5. Nf3 {[%emt 0:00:00]} O-O {[%emt 0:00:00]} 6. Be2 {[%emt 0:00:16]} e5 {[%emt 0:00:33]} 7. O-O {[%emt 0:02:17]} Nc6 {[%emt 0:00:39]} 8. d5 {[%emt 0:06:22]} Ne7 {[%emt 0:00:21]} 9. Ne1 {[%emt 0:01:09]} Nd7 {[%emt 0:01:32]} 10. Be3 {[%emt 0:00:35]} f5 {[%emt 0:01:13]} 11. f3 {[%emt 0:00:15]} f4 {[%emt 0:00:35]} 12. Bf2 {[%emt 0:00:09]} g5 {[%emt 0:01:27]} 13. Nd3 {[%emt 0:06:07]} Ng6 {[%emt 0:15:14]} 14. c5 {[%emt 0:12:03]} Nf6 {[%emt 0:01:29]} 15. Rc1 {[%emt 0:06:30]} Rf7 {[%emt 0:01:24]} 16. b4 {[%emt 0:14:55]} h5 {[%emt 0:02:49]} 17. h3 {[%emt 0:08:27]} Bf8 {[%emt 0:03:44]} 18. b5 {[%emt 0:06:43]} Rg7 {[%emt 0:02:09]} 19. b6 {[%emt 0:06:53]} axb6 {[%emt 0:00:50]} 20. cxb6 {[%emt 0:00:08]} cxb6 {[%emt 0:01:41]} 21. Na4 {[%emt 0:05:06]} Ra6 {[%emt 0:05:34]} 22. Nb4 {[%emt 0:00:55]} Bxh3 {[%emt 0:02:41]} 23. Nxa6 {[%emt 0:02:00]} Bxg2 {[%emt 0:00:49]} 24. Kxg2 {[%emt 0:01:32]} Nh4+ {[%emt 0:01:15]} 25. Bxh4 {[%emt 0:02:46]} gxh4+ {[%emt 0:00:15]} 26. Kf2 {[%emt 0:00:17]} bxa6 {[%emt 0:01:18]} 27. Bxa6 {[%emt 0:01:25]} Qd7 {[%emt 0:01:39]} 28. Bc8 {[%emt 0:06:43]} Qa7 {[%emt 0:01:26]} 29. Be6+ {[%emt 0:00:19]} Kh7 {[%emt 0:00:38]} 30. Bf5+ {[%emt 0:00:17]} Kg8 {[%emt 0:00:15]} 31. Rc6 {[%emt 0:03:46]} b5+ {[%emt 0:01:34]} 32. Nb6 {[%emt 0:00:31]} Qxa2+ {[%emt 0:01:13]} 33. Qc2 {[%emt 0:00:36]} Qa3 {[%emt 0:00:49]} 34. Qc3 {[%emt 0:04:42]} Qa2+ {[%emt 0:00:52]} 35. Qc2 {[%emt 0:00:01]} Qa3 {[%emt 0:00:35]} 36. Rc3 {[%emt 0:00:38]} Qa7 {[%emt 0:00:51]} 37. Rc6 {[%emt 0:00:32]} Qa3 {[%emt 0:01:21]} 38. Be6+ {[%emt 0:01:30]} Kh7 {[%emt 0:00:48]} 39. Bf5+ {[%emt 0:00:01]} Kg8 {[%emt 0:00:11]} 40. Be6+ {[%emt 0:02:05]} Kh7 {[%emt 0:00:07]} 41. Bf5+ {[%emt 0:00:00]} 1/2-1/2

[Event "Ceske Budejovice Open-A 2019"]
[Site "Ceske Budejovice"]
[Date "2019.07.06"]
[Round "8.18"]
[White "Tajovsky, Matej"]
[Black "Kanka, Matej"]
[Result "0-1"]
[ECO "B68"]
[WhiteElo "1779"]
[BlackElo "1858"]
[Annotator "NA RC"]
[PlyCount "108"]
[EventDate "2019.07.02"]
[EventCountry "CZE"]
[SourceTitle "playchess.com"]
[Source "ChessBase"]
[SourceQuality "1"]
[TimeControl "5400+30"]

1. e4 {[%emt 0:00:00]} c5 {[%emt 0:00:28]} 2. Nf3 {[%emt 0:00:12]} Nc6 {[%emt 0:00:28]} 3. d4 {[%emt 0:00:06]} cxd4 {[%emt 0:00:05]} 4. Nxd4 {[%emt 0:00:04]} Nf6 {[%emt 0:00:06]} 5. Nc3 {[%emt 0:00:06]} d6 {[%emt 0:00:46]} 6. Bg5 {[%emt 0:00:24]} e6 {[%emt 0:00:38]} 7. Qd2 {[%emt 0:00:08]} Be7 {[%emt 0:00:23]} 8. O-O-O {[%emt 0:00:15]} a6 {[%emt 0:02:11]} 9. f4 {[%emt 0:01:25]} Bd7 {[%emt 0:00:30]} 10. Be2 {[%emt 0:02:21]} b5 {[%emt 0:01:29]} 11. Bf3 {[%emt 0:00:58]} Rc8 {[%emt 0:04:03]} 12. Nxc6 {[%emt 0:05:41]} Bxc6 {[%emt 0:00:12]} 13. e5 {[%emt 0:03:26]} Bxf3 {[%emt 0:09:03]} 14. exf6 {[%emt 0:00:55]} gxf6 {[%emt 0:01:42]} 15. gxf3 {[%emt 0:00:13]} fxg5 {[%emt 0:00:19]} 16. Ne4 {[%emt 0:00:24]} d5 {[%emt 0:00:59]} 17. Nxg5 {[%emt 0:00:18]} Bf6 {[%emt 0:01:27]} 18. Rhg1 {[%emt 0:02:57]} Qc7 {[%emt 0:03:07]} 19. Rg2 {[%emt 0:03:04]} h6 {[%emt 0:01:45]} 20. Nh3 {[%emt 0:01:11]} a5 {[%emt 0:04:49]} 21. Re1 {[%emt 0:02:50]} Qc4 {[%emt 0:12:38]} 22. Qxa5 {[%emt 0:08:55]} Kd7 {[%emt 0:11:26]} 23. Qa7+ {[%emt 0:01:28]} Rc7 {[%emt 0:00:36]} 24. Qa3 {[%emt 0:00:15]} Rg8 {[%emt 0:06:52]} 25. Rge2 {[%emt 0:06:30]} Bh4 {[%emt 0:05:17]} 26. Nf2 {[%emt 0:04:07]} Rg1 {[%emt 0:08:08]} 27. Kd1 {[%emt 0:06:58]} Rxe1+ {[%emt 0:09:09]} 28. Kxe1 {[%emt 0:00:16]} Qxf4 {[%emt 0:00:24]} 29. Kf1 {[%emt 0:05:28]} Qxh2 {[%emt 0:01:27]} 30. Qd3 {[%emt 0:01:04]} Ke7 {[%emt 0:05:22]} 31. c3 {[%emt 0:05:28]} b4 {[%emt 0:01:08]} 32. Qb5 {[%emt 0:03:31]} bxc3 {[%emt 0:02:53]} 33. bxc3 {[%emt 0:00:56]} Rc4 {[%emt 0:01:52]} 34. a4 {[%emt 0:06:34]} Kf8 {[%emt 0:01:29]} 35. a5 {[%emt 0:01:29]} Kg8 {[%emt 0:00:27]} 36. Qb3 {[%emt 0:01:25]} Bf6 {[%emt 0:02:48]} 37. a6 {[%emt 0:09:14]} Qc7 {[%emt 0:00:34]} 38. Ng4 {[%emt 0:04:59]} Bg5 {[%emt 0:00:30]} 39. Rb2 {[%emt 0:06:40]} Rxc3 {[%emt 0:00:56]} 40. Qb8+ {[%emt 0:00:24]} Kg7 {[%emt 0:00:22]} 41. a7 {[%emt 0:04:12]} Qc4+ {[%emt 0:00:00]} 42. Kg2 {[%emt 0:00:00]} Bf4 {[%emt 0:00:00]} 43. Qd8 {[%emt 0:00:00]} Bg5 {[%emt 0:00:44]} 44. Qd6 {[%emt 0:00:00]} Bf4 {[%emt 0:01:05]} 45. Qb4 {[%emt 0:00:00]} Qxb4 {[%emt 0:00:19]} 46. Rxb4 {[%emt 0:00:00]} Ra3 {[%emt 0:00:08]} 47. Rb7 {[%emt 0:00:00]} Bd6 {[%emt 0:00:38]} 48. Rd7 {[%emt 0:03:33]} Bc5 {[%emt 0:00:32]} 49. Rb7 {[%emt 0:00:54]} Rxa7 {[%emt 0:00:10]} 50. Rb1 {[%emt 0:00:25]} Ra2+ {[%emt 0:00:53]} 51. Kg3 {[%emt 0:00:35]} h5 {[%emt 0:00:15]} 52. Ne5 {[%emt 0:01:22]} Bd6 {[%emt 0:00:05]} 53. f4 {[%emt 0:00:29]} Bxe5 {[%emt 0:00:04]} 54. fxe5 {[%emt 0:00:07]} Re2 {[%emt 0:00:05]} 0-1

[Event "Ceske Budejovice Open-A 2019"]
[Site "Ceske Budejovice"]
[Date "2019.07.06"]
[Round "8.19"]
[White "Puncochar, Jiri"]
[Black "Rolinkova, Lucie"]
[Result "1-0"]
[ECO "B01"]
[WhiteElo "2014"]
[BlackElo "1703"]
[Annotator "NA"]
[PlyCount "75"]
[EventDate "2019.07.02"]
[EventCountry "CZE"]
[SourceTitle "playchess.com"]
[Source "ChessBase"]
[SourceQuality "1"]
[TimeControl "5400+30"]

1. e4 d5 2. exd5 Qxd5 3. Nc3 Qa5 4. Bc4 Nf6 5. d3 Bg4 6. f3 Bf5 7. Bd2 c6 8. Qe2 Nbd7 9. Nb5 Qb6 10. Nd6+ Kd8 11. Nxf5 Qxb2 12. Rd1 e6 13. Ng3 a5 14. d4 b5 15. Bd3 Qxa2 16. Ne4 Qa3 17. Nh3 h6 18. O-O Qe7 19. Nhf2 b4 20. Nxf6 Nxf6 21. Ne4 Nd5 22. Ra1 Qa7 23. Be3 e5 24. Bf2 exd4 25. Bc4 Ne3 26. Bxe3 dxe3 27. Kh1 Ke8 28. Rfd1 Rd8 29. Rxd8+ Kxd8 30. Rd1+ Ke8 31. f4 a4 32. Rd3 a3 33. Qxe3 Qxe3 34. Rxe3 f5 35. Nd6+ Kd7 36. Nxf5 Bd6 37. Rd3 g6 38. Nxd6 1-0

[Event "Ceske Budejovice Open-A 2019"]
[Site "Ceske Budejovice"]
[Date "2019.07.06"]
[Round "8.20"]
[White "Zacek, Petr"]
[Black "Chval, Zdenek"]
[Result "0-1"]
[ECO "A49"]
[WhiteElo "1883"]
[BlackElo "2145"]
[Annotator "NA"]
[PlyCount "42"]
[EventDate "2019.07.02"]
[EventCountry "CZE"]
[SourceTitle "playchess.com"]
[Source "ChessBase"]
[SourceQuality "1"]
[TimeControl "5400+30"]

1. d4 {[%emt 0:00:00]} Nf6 {[%emt 0:00:00]} 2. Nf3 {[%emt 0:00:00]} g6 {[%emt 0:00:00]} 3. g3 {[%emt 0:00:00]} Bg7 {[%emt 0:00:00]} 4. Bg2 {[%emt 0:00:03]} O-O {[%emt 0:00:00]} 5. O-O {[%emt 0:00:07]} d6 {[%emt 0:00:00]} 6. c4 {[%emt 0:00:08]} c5 {[%emt 0:00:00]} 7. d5 {[%emt 0:00:23]} Nbd7 {[%emt 0:02:33]} 8. Nc3 {[%emt 0:00:18]} a6 {[%emt 0:01:07]} 9. e4 {[%emt 0:00:38]} Rb8 {[%emt 0:01:35]} 10. Qe2 {[%emt 0:03:52]} b5 {[%emt 0:26:21]} 11. Rb1 {[%emt 0:03:23]} Qa5 {[%emt 0:20:57]} 12. Nd2 {[%emt 0:10:04]} Ne5 {[%emt 0:12:31]} 13. h3 {[%emt 0:07:12]} e6 {[%emt 0:06:27]} 14. a3 {[%emt 0:12:32]} Nxc4 {[%emt 0:10:36]} 15. Nxc4 {[%emt 0:00:49]} bxc4 {[%emt 0:00:01]} 16. Qxc4 {[%emt 0:00:03]} exd5 {[%emt 0:02:48]} 17. Nxd5 {[%emt 0:07:39]} Nxd5 {[%emt 0:03:13]} 18. Qxd5 {[%emt 0:02:36]} Be6 {[%emt 0:03:46]} 19. Qd3 {[%emt 0:14:26]} Rfd8 {[%emt 0:05:19]} 20. b4 {[%emt 0:07:14]} cxb4 {[%emt 0:01:13]} 21. axb4 {[%emt 0:01:39]} Qa2 0-1

[Event "Ceske Budejovice Open-A 2019"]
[Site "Ceske Budejovice"]
[Date "2019.07.06"]
[Round "8.21"]
[White "Baloun, Tomas"]
[Black "Stodola, Zdenek"]
[Result "0-1"]
[ECO "B03"]
[WhiteElo "1887"]
[BlackElo "1551"]
[Annotator "NA"]
[PlyCount "66"]
[EventDate "2019.07.02"]
[EventCountry "CZE"]
[SourceTitle "playchess.com"]
[Source "ChessBase"]
[SourceQuality "1"]
[TimeControl "5400+30"]

1. e4 {[%emt 0:00:01]} Nf6 {[%emt 0:00:00]} 2. e5 {[%emt 0:00:21]} Nd5 {[%emt 0:00:00]} 3. d4 {[%emt 0:00:19]} d6 {[%emt 0:00:00]} 4. c4 {[%emt 0:00:53]} Nb6 {[%emt 0:00:00]} 5. f4 {[%emt 0:00:36]} dxe5 {[%emt 0:00:00]} 6. fxe5 {[%emt 0:00:30]} Nc6 {[%emt 0:00:00]} 7. Be3 {[%emt 0:01:05]} Bf5 {[%emt 0:00:00]} 8. Nf3 {[%emt 0:06:13]} e6 {[%emt 0:00:40]} 9. a3 {[%emt 0:03:32]} a5 {[%emt 0:01:16]} 10. Be2 {[%emt 0:02:42]} Be7 {[%emt 0:00:28]} 11. O-O {[%emt 0:04:10]} O-O {[%emt 0:00:35]} 12. Nc3 {[%emt 0:07:11]} f6 {[%emt 0:00:51]} 13. Qe1 {[%emt 0:13:50]} a4 {[%emt 0:03:49]} 14. Qg3 {[%emt 0:07:32]} Na5 {[%emt 0:01:55]} 15. Nh4 {[%emt 0:13:32]} fxe5 {[%emt 0:06:27]} 16. Nxf5 {[%emt 0:05:43]} exf5 {[%emt 0:02:48]} 17. Bh6 {[%emt 0:01:42]} Qxd4+ {[%emt 0:07:17]} 18. Kh1 {[%emt 0:04:16]} e4 {[%emt 0:00:20]} 19. Qxc7 {[%emt 0:07:15]} Bd6 {[%emt 0:01:07]} 20. Bxg7 {[%emt 0:02:28]} Bxc7 {[%emt 0:08:43]} 21. Bxd4 {[%emt 0:00:04]} Nbxc4 {[%emt 0:00:57]} 22. Nd5 {[%emt 0:03:08]} Be5 {[%emt 0:08:28]} 23. Ne7+ {[%emt 0:04:46]} Kh8 {[%emt 0:03:17]} 24. Bxe5+ {[%emt 0:04:07]} Nxe5 {[%emt 0:00:30]} 25. Nxf5 {[%emt 0:00:35]} Nd3 {[%emt 0:08:05]} 26. Nd6 {[%emt 0:01:47]} Nb3 {[%emt 0:05:28]} 27. Bxd3 {[%emt 0:01:12]} Nxa1 {[%emt 0:00:32]} 28. Nxe4 {[%emt 0:02:43]} Rxf1+ {[%emt 0:00:29]} 29. Bxf1 {[%emt 0:00:03]} Rd8 {[%emt 0:06:39]} 30. Kg1 {[%emt 0:00:38]} Nb3 {[%emt 0:01:44]} 31. Kf2 {[%emt 0:01:29]} Rf8+ {[%emt 0:02:17]} 32. Ke1 {[%emt 0:00:57]} Re8 {[%emt 0:00:45]} 33. Bd3 {[%emt 0:00:22]} Nc5 {[%emt 0:00:41] Nf2} 0-1

[Event "Ceske Budejovice Open-A 2019"]
[Site "Ceske Budejovice"]
[Date "2019.07.06"]
[Round "8.22"]
[White "Pavlicek, Petr"]
[Black "Brhlik, Antonin"]
[Result "1-0"]
[ECO "A05"]
[WhiteElo "1828"]
[BlackElo "1639"]
[Annotator "NA"]
[PlyCount "140"]
[EventDate "2019.07.02"]
[EventCountry "CZE"]
[SourceTitle "playchess.com"]
[Source "ChessBase"]
[SourceQuality "1"]
[TimeControl "5400+30"]

1. Nf3 {[%emt 0:00:00]} Nf6 {[%emt 0:01:03]} 2. d4 {[%emt 0:00:03]} c5 {[%emt 0:02:32]} 3. c4 {[%emt 0:01:41]} cxd4 {[%emt 0:00:28]} 4. Nxd4 {[%emt 0:00:34]} e5 {[%emt 0:00:17]} 5. Nb5 {[%emt 0:00:31]} d5 {[%emt 0:00:22]} 6. cxd5 {[%emt 0:00:26]} Bc5 {[%emt 0:00:53]} 7. e3 {[%emt 0:02:08]} O-O {[%emt 0:10:03]} 8. Bc4 {[%emt 0:24:07]} a6 {[%emt 0:03:40]} 9. N5c3 {[%emt 0:00:51]} e4 {[%emt 0:03:06]} 10. O-O {[%emt 0:00:59]} Bd6 {[%emt 0:22:35]} 11. Be2 {[%emt 0:08:52]} Qe7 {[%emt 0:04:14]} 12. Nd2 {[%emt 0:03:37]} b5 {[%emt 0:06:13]} 13. a3 {[%emt 0:03:45]} Bb7 {[%emt 0:09:59]} 14. Qc2 {[%emt 0:10:57]} Re8 {[%emt 0:04:04]} 15. Rd1 {[%emt 0:05:27]} Nbd7 {[%emt 0:00:55]} 16. Nf1 {[%emt 0:01:51]} Rac8 {[%emt 0:00:59]} 17. Qd2 {[%emt 0:02:38]} Nb6 {[%emt 0:11:29]} 18. Ng3 {[%emt 0:02:29]} Bxg3 {[%emt 0:04:44]} 19. hxg3 {[%emt 0:00:52]} Nbxd5 {[%emt 0:01:23]} 20. Nxd5 {[%emt 0:03:20]} Bxd5 {[%emt 0:00:25]} 21. Qe1 {[%emt 0:02:27]} Bb3 {[%emt 0:01:22]} 22. Rd4 {[%emt 0:01:01]} Red8 {[%emt 0:06:03]} 23. Rxd8+ {[%emt 0:00:41]} Qxd8 {[%emt 0:00:55]} 24. Bd2 {[%emt 0:00:14]} Nd5 {[%emt 0:01:01]} 25. Rc1 {[%emt 0:01:23]} Rxc1 {[%emt 0:01:33]} 26. Qxc1 {[%emt 0:00:07]} Qc7 {[%emt 0:00:28]} 27. Qxc7 {[%emt 0:03:39]} Nxc7 {[%emt 0:00:02]} 28. Ba5 {[%emt 0:00:10]} Nd5 {[%emt 0:00:43]} 29. Bg4 {[%emt 0:00:16]} Ne7 {[%emt 0:00:49]} 30. Bb4 {[%emt 0:01:35]} Nc6 {[%emt 0:00:55]} 31. Bc8 {[%emt 0:02:40]} a5 {[%emt 0:00:52]} 32. Bc5 {[%emt 0:00:19]} a4 {[%emt 0:01:22]} 33. Kf1 {[%emt 0:02:59]} Ne5 {[%emt 0:00:28]} 34. Bd4 {[%emt 0:00:32]} Bc4+ {[%emt 0:00:28]} 35. Kg1 {[%emt 0:00:18]} Nd3 {[%emt 0:00:33]} 36. Bd7 {[%emt 0:00:35]} f6 {[%emt 0:00:29]} 37. Bc6 {[%emt 0:00:19]} f5 {[%emt 0:00:29]} 38. Bd7 {[%emt 0:01:35]} g6 {[%emt 0:00:15]} 39. g4 {[%emt 0:00:04]} fxg4 {[%emt 0:00:43]} 40. Bxg4 {[%emt 0:00:07]} Kf7 {[%emt 0:00:34]} 41. Bd7 {[%emt 0:04:57]} Nc1 {[%emt 0:00:00]} 42. Kh2 {[%emt 0:00:00]} Ke7 {[%emt 0:00:00]} 43. Bc6 {[%emt 0:00:00]} Bd3 {[%emt 0:00:00]} 44. Bd5 {[%emt 0:00:00]} Nb3 {[%emt 0:00:00]} 45. Be5 {[%emt 0:00:00]} Nc5 {[%emt 0:00:00]} 46. g4 {[%emt 0:00:00]} Ne6 {[%emt 0:00:00]} 47. Kg3 {[%emt 0:00:00]} Kd7 {[%emt 0:00:00]} 48. Bf4 {[%emt 0:00:00]} Ke7 {[%emt 0:00:00]} 49. g5 {[%emt 0:00:00]} Kd7 {[%emt 0:00:30]} 50. Kg4 {[%emt 0:00:00]} Ke7 {[%emt 0:02:00]} 51. Be5 {[%emt 0:00:00]} Kd7 {[%emt 0:00:17]} 52. Kh4 {[%emt 0:00:00]} Bc2 {[%emt 0:00:41]} 53. Kg4 {[%emt 0:00:00]} Bd1+ {[%emt 0:01:13]} 54. Kh4 {[%emt 0:00:00]} Bc2 {[%emt 0:00:32]} 55. Bf4 {[%emt 0:00:00]} Bd3 {[%emt 0:00:19]} 56. Kg3 {[%emt 0:00:00]} Bc2 {[%emt 0:00:32]} 57. Kg2 {[%emt 0:00:00]} Bd3 {[%emt 0:00:05]} 58. Kg1 {[%emt 0:00:00]} Bc2 {[%emt 0:01:33]} 59. Kf1 {[%emt 0:00:00]} Bd3+ {[%emt 0:00:48]} 60. Ke1 {[%emt 0:00:00]} Bb1 {[%emt 0:00:54]} 61. Kd2 {[%emt 0:00:00]} Bd3 {[%emt 0:01:01]} 62. Kc3 {[%emt 0:00:00]} Bb1 {[%emt 0:00:29]} 63. Kb4 {[%emt 0:00:00]} Bd3 {[%emt 0:00:11]} 64. Ka5 {[%emt 0:00:00]} Bc4 {[%emt 0:00:54]} 65. Bxe4 {[%emt 0:00:00]} Nxf4 {[%emt 0:00:29]} 66. exf4 {[%emt 0:00:00]} Kd6 {[%emt 0:00:30]} 67. Kb4 {[%emt 0:00:00]} Be2 {[%emt 0:00:27]} 68. Kc3 {[%emt 0:01:15]} Kc5 {[%emt 0:00:34]} 69. f5 {[%emt 0:00:14]} gxf5 {[%emt 0:00:29]} 70. Bxf5 {[%emt 0:00:07]} Kd5 1-0

[Event "Ceske Budejovice Open-A 2019"]
[Site "Ceske Budejovice"]
[Date "2019.07.06"]
[Round "8.23"]
[White "Gumerov, Ruslan"]
[Black "Solovyova, Anastasia"]
[Result "1/2-1/2"]
[ECO "C42"]
[WhiteElo "1843"]
[BlackElo "1835"]
[Annotator "NA"]
[PlyCount "26"]
[EventDate "2019.07.02"]
[EventCountry "CZE"]
[SourceTitle "playchess.com"]
[Source "ChessBase"]
[SourceQuality "1"]
[TimeControl "5400+30"]

1. e4 {[%emt 0:01:50]} e5 {[%emt 0:00:07]} 2. Nf3 {[%emt 0:01:07]} Nf6 {[%emt 0:00:19]} 3. Nxe5 {[%emt 0:01:43]} d6 4. Nf3 Nxe4 {[%emt 0:01:37]} 5. d4 {[%emt 0:01:12]} d5 6. Bd3 {[%emt 0:01:28]} Nf6 {[%emt 0:01:56]} 7. O-O {[%emt 0:00:25]} Be7 {[%emt 0:00:14]} 8. h3 Nbd7 {[%emt 0:01:05]} 9. Bf4 {[%emt 0:02:19]} Nf8 10. c4 {[%emt 0:01:32]} dxc4 {[%emt 0:01:01]} 11. Bxc4 {[%emt 0:00:32]} Be6 {[%emt 0:00:23]} 12. Bxe6 {[%emt 0:01:29]} Nxe6 {[%emt 0:00:40]} 13. Be5 O-O 1/2-1/2

[Event "Ceske Budejovice Open-A 2019"]
[Site "Ceske Budejovice"]
[Date "2019.07.06"]
[Round "8.24"]
[White "Prazak, Daniel"]
[Black "Chval, Petr"]
[Result "1-0"]
[ECO "B42"]
[WhiteElo "1586"]
[BlackElo "1885"]
[Annotator "NA"]
[PlyCount "55"]
[EventDate "2019.07.02"]
[EventCountry "CZE"]
[SourceTitle "playchess.com"]
[Source "ChessBase"]
[SourceQuality "1"]
[TimeControl "5400+30"]

1. e4 {[%emt 0:00:00]} c5 {[%emt 0:02:02]} 2. Nf3 {[%emt 0:01:15]} e6 {[%emt 0:00:03]} 3. d4 {[%emt 0:00:29]} cxd4 {[%emt 0:00:05]} 4. Nxd4 {[%emt 0:00:31]} a6 {[%emt 0:00:04]} 5. Bd3 {[%emt 0:01:12]} Qc7 {[%emt 0:01:25]} 6. O-O {[%emt 0:03:04]} Nf6 {[%emt 0:02:55]} 7. Qe2 {[%emt 0:04:38]} d6 {[%emt 0:01:47]} 8. Nc3 {[%emt 0:03:08]} b5 {[%emt 0:00:50]} 9. a3 {[%emt 0:04:14]} Be7 {[%emt 0:02:41]} 10. Bd2 {[%emt 0:01:58]} O-O {[%emt 0:03:21]} 11. Rae1 {[%emt 0:01:14]} Nbd7 {[%emt 0:02:33]} 12. Kh1 {[%emt 0:05:33]} Nc5 {[%emt 0:03:02]} 13. f4 {[%emt 0:05:51]} Bb7 {[%emt 0:03:51]} 14. Rf3 {[%emt 0:07:24]} Nfd7 {[%emt 0:07:40]} 15. Rh3 {[%emt 0:04:27]} Nxd3 {[%emt 0:02:46]} 16. Qxd3 {[%emt 0:07:56]} Rfe8 {[%emt 0:06:10]} 17. Ree3 {[%emt 0:15:54]} Qc4 {[%emt 0:00:38]} 18. Nde2 {[%emt 0:10:50]} Qxd3 {[%emt 0:04:01]} 19. cxd3 {[%emt 0:02:02]} Rac8 {[%emt 0:01:04]} 20. Rhf3 {[%emt 0:03:06]} Bd8 {[%emt 0:07:22]} 21. d4 {[%emt 0:01:43]} Bb6 {[%emt 0:01:37]} 22. Rd3 {[%emt 0:00:24]} Nf6 {[%emt 0:02:51]} 23. Ng3 {[%emt 0:00:31]} Rc4 {[%emt 0:02:47]} 24. d5 {[%emt 0:01:11]} exd5 {[%emt 0:01:30]} 25. Nxd5 {[%emt 0:01:11]} Nxd5 {[%emt 0:13:46]} 26. exd5 {[%emt 0:00:16]} g6 {[%emt 0:03:55]} 27. h3 {[%emt 0:01:03]} Bd4 {[%emt 0:03:04]} 28. b3 {[%emt 0:01:47]} 1-0